[Event "*** SCC Grand Prix: Titled Tuesday Blitz"]
[Site "Chess.com"]
[Date "2020.09.08"]
[Round "1"]
[White "XiaoKangZhong"]
[Black "Funo09"]
[Result "0-1"]
[WhiteElo "2421"]
[BlackElo "2841"]
[TimeControl "180+1"]
[EndTime "10:05:34 PDT"]
[Termination "Funo09 won by resignation"]

1. e4 {[%clk 0:02:59.3]} 1... c5 {[%clk 0:02:59.5]} 2. c3 {[%clk 0:02:59.2]}
2... Nf6 {[%clk 0:02:59.2]} 3. e5 {[%clk 0:02:59.6]} 3... Nd5 {[%clk 0:02:59.8]}
4. d4 {[%clk 0:03:00.3]} 4... cxd4 {[%clk 0:03:00.4]} 5. Nf3 {[%clk 0:03:00.6]}
5... g6 {[%clk 0:03:00.7]} 6. cxd4 {[%clk 0:03:00.8]} 6... Bg7 {[%clk
0:03:00.8]} 7. Nc3 {[%clk 0:02:45.4]} 7... Nxc3 {[%clk 0:03:00.9]} 8. bxc3
{[%clk 0:02:46.3]} 8... O-O {[%clk 0:03:01.5]} 9. Bd3 {[%clk 0:02:46.2]} 9... d6
{[%clk 0:03:02.1]} 10. Qe2 {[%clk 0:02:46.3]} 10... Nc6 {[%clk 0:03:00.9]} 11.
Bf4 {[%clk 0:02:43.6]} 11... Bg4 {[%clk 0:02:58.2]} 12. exd6 {[%clk 0:02:42.1]}
12... exd6 {[%clk 0:02:59.1]} 13. O-O {[%clk 0:02:42.2]} 13... Re8 {[%clk
0:02:59.6]} 14. Be3 {[%clk 0:02:40.9]} 14... d5 {[%clk 0:02:55]} 15. h3 {[%clk
0:02:40.5]} 15... Be6 {[%clk 0:02:48.2]} 16. Rab1 {[%clk 0:02:35.9]} 16... b6
{[%clk 0:02:48.4]} 17. Qd2 {[%clk 0:02:32.1]} 17... Rc8 {[%clk 0:02:47.1]} 18.
Rfe1 {[%clk 0:02:31]} 18... Na5 {[%clk 0:02:46]} 19. Ng5 {[%clk 0:02:29.3]}
19... Bd7 {[%clk 0:02:41.1]} 20. Bf4 {[%clk 0:02:08.4]} 20... Nc4 {[%clk
0:02:34.8]} 21. Bxc4 {[%clk 0:02:08.1]} 21... Rxc4 {[%clk 0:02:35.7]} 22. Rxe8+
{[%clk 0:02:06.7]} 22... Bxe8 {[%clk 0:02:31.6]} 23. Re1 {[%clk 0:02:06.8]}
23... Rc8 {[%clk 0:02:29.9]} 24. Nf3 {[%clk 0:02:06.3]} 24... Bd7 {[%clk
0:02:25.3]} 25. Bd6 {[%clk 0:02:01.9]} 25... Bf5 {[%clk 0:02:17.9]} 26. Be5
{[%clk 0:01:51.3]} 26... f6 {[%clk 0:02:16.8]} 27. Bg3 {[%clk 0:01:46.2]} 27...
Bf8 {[%clk 0:02:15]} 28. Qe3 {[%clk 0:01:42.7]} 28... Kf7 {[%clk 0:02:08.5]} 29.
Nh4 {[%clk 0:01:29.4]} 29... Bd7 {[%clk 0:02:08.4]} 30. f4 {[%clk 0:01:30]}
30... Qc7 {[%clk 0:01:46.8]} 31. Rc1 {[%clk 0:01:24.7]} 31... Re8 {[%clk
0:01:45.4]} 32. Qf3 {[%clk 0:01:19]} 32... Qc6 {[%clk 0:01:40.5]} 33. f5 {[%clk
0:00:47.8]} 33... g5 {[%clk 0:01:40.1]} 34. Qh5+ {[%clk 0:00:48.1]} 34... Kg7
{[%clk 0:01:40.5]} 35. Nf3 {[%clk 0:00:42]} 35... Bxf5 {[%clk 0:01:39.4]} 36. h4
{[%clk 0:00:35.3]} 36... Bg6 {[%clk 0:01:38.3]} 37. Qg4 {[%clk 0:00:35.5]} 37...
h5 {[%clk 0:01:38.3]} 38. Qh3 {[%clk 0:00:27.9]} 38... g4 {[%clk 0:01:38.2]} 39.
Qh2 {[%clk 0:00:28.3]} 39... gxf3 {[%clk 0:01:38.2]} 40. gxf3 {[%clk 0:00:29.2]}
40... Ba3 {[%clk 0:01:36.6]} 0-1

[Event "*** SCC Grand Prix: Titled Tuesday Blitz"]
[Site "Chess.com"]
[Date "2020.09.08"]
[Round "1"]
[White "Vsevolod_Ovchinnikov"]
[Black "uthoang"]
[Result "1-0"]
[WhiteElo "2561"]
[BlackElo "2221"]
[TimeControl "180+1"]
[EndTime "10:05:37 PDT"]
[Termination "Vsevolod_Ovchinnikov won by resignation"]

1. d4 {[%clk 0:03:00.9]} 1... d5 {[%clk 0:02:59.1]} 2. c4 {[%clk 0:03:01.3]}
2... c6 {[%clk 0:02:58.8]} 3. Nf3 {[%clk 0:03:01.2]} 3... Nf6 {[%clk 0:02:58.5]}
4. g3 {[%clk 0:03:01.7]} 4... Bf5 {[%clk 0:02:53]} 5. Nc3 {[%clk 0:03:00]} 5...
e6 {[%clk 0:02:52.9]} 6. Qb3 {[%clk 0:02:52.8]} 6... Qb6 {[%clk 0:02:50.6]} 7.
c5 {[%clk 0:02:47.1]} 7... Qxb3 {[%clk 0:02:40]} 8. axb3 {[%clk 0:02:48]} 8...
Be7 {[%clk 0:02:35.3]} 9. b4 {[%clk 0:02:29.8]} 9... O-O {[%clk 0:02:34.1]} 10.
Nh4 {[%clk 0:01:44.4]} 10... Be4 {[%clk 0:02:23.1]} 11. f3 {[%clk 0:01:43.7]}
11... Bg6 {[%clk 0:02:21.4]} 12. Nxg6 {[%clk 0:01:37.4]} 12... hxg6 {[%clk
0:02:22.3]} 13. Bf4 {[%clk 0:01:31.5]} 13... Nfd7 {[%clk 0:02:18.7]} 14. e4
{[%clk 0:01:17.4]} 14... dxe4 {[%clk 0:01:55.2]} 15. fxe4 {[%clk 0:01:17.4]}
15... Nf6 {[%clk 0:01:52.5]} 16. Be2 {[%clk 0:00:56.6]} 16... Rd8 {[%clk
0:01:49.4]} 17. Be3 {[%clk 0:00:51.7]} 17... Nh5 {[%clk 0:01:38.8]} 18. e5
{[%clk 0:00:27.9]} 18... g5 {[%clk 0:01:32]} 19. Bxh5 {[%clk 0:00:27.2]} 19...
a6 {[%clk 0:01:26.1]} 20. O-O {[%clk 0:00:26.6]} 20... g6 {[%clk 0:01:25.3]} 21.
Be2 {[%clk 0:00:24.2]} 21... Nd7 {[%clk 0:01:24.8]} 22. Rf2 {[%clk 0:00:23.5]}
22... Kg7 {[%clk 0:01:23.5]} 23. Raf1 {[%clk 0:00:23.9]} 23... Rf8 {[%clk
0:01:23.7]} 24. Ne4 {[%clk 0:00:24.1]} 24... a5 {[%clk 0:01:22.1]} 25. b5 {[%clk
0:00:24.1]} 25... a4 {[%clk 0:01:19.4]} 26. bxc6 {[%clk 0:00:24.2]} 26... bxc6
{[%clk 0:01:20.3]} 27. Bxg5 {[%clk 0:00:24.4]} 27... Bxg5 {[%clk 0:01:13.5]} 28.
Nxg5 {[%clk 0:00:25.3]} 28... f5 {[%clk 0:01:12.2]} 29. Nxe6+ {[%clk 0:00:25]}
1-0

[Event "*** SCC Grand Prix: Titled Tuesday Blitz"]
[Site "Chess.com"]
[Date "2020.09.08"]
[Round "1"]
[White "albano87"]
[Black "ClockworkKubrick"]
[Result "1-0"]
[WhiteElo "2523"]
[BlackElo "2154"]
[TimeControl "180+1"]
[EndTime "10:05:38 PDT"]
[Termination "albano87 won by checkmate"]

1. e4 {[%clk 0:02:58.6]} 1... d6 {[%clk 0:02:59.6]} 2. d4 {[%clk 0:02:57.9]}
2... Nf6 {[%clk 0:02:59.4]} 3. Nc3 {[%clk 0:02:57.4]} 3... g6 {[%clk 0:02:59.3]}
4. Bf4 {[%clk 0:02:54.9]} 4... Bg7 {[%clk 0:02:59.6]} 5. Qd2 {[%clk 0:02:55.5]}
5... O-O {[%clk 0:02:59.7]} 6. O-O-O {[%clk 0:02:54.4]} 6... c6 {[%clk
0:02:59.8]} 7. Kb1 {[%clk 0:02:51.7]} 7... Nbd7 {[%clk 0:03:00]} 8. f3 {[%clk
0:02:50.9]} 8... b5 {[%clk 0:02:58.7]} 9. h4 {[%clk 0:02:44]} 9... Qa5 {[%clk
0:02:48.1]} 10. Bh6 {[%clk 0:02:40.3]} 10... e5 {[%clk 0:02:41]} 11. dxe5 {[%clk
0:02:35.5]} 11... dxe5 {[%clk 0:02:40.4]} 12. h5 {[%clk 0:02:35.3]} 12... Nc5
{[%clk 0:02:17.8]} 13. hxg6 {[%clk 0:02:30.3]} 13... fxg6 {[%clk 0:02:15.1]} 14.
Bxg7 {[%clk 0:02:31.2]} 14... Kxg7 {[%clk 0:02:15.2]} 15. Qh6+ {[%clk
0:02:29.9]} 15... Kg8 {[%clk 0:02:15.1]} 16. Nh3 {[%clk 0:02:18.4]} 16... Bxh3
{[%clk 0:02:14.2]} 17. Rxh3 {[%clk 0:02:14.1]} 17... Rf7 {[%clk 0:02:12.9]} 18.
Rd6 {[%clk 0:02:11]} 18... Ne8 {[%clk 0:01:40.6]} 19. Rxg6+ {[%clk 0:02:03.8]}
19... Kh8 {[%clk 0:01:36.7]} 20. Qg5 {[%clk 0:01:42.9]} 20... Ng7 {[%clk
0:01:22.8]} 21. Rgh6 {[%clk 0:01:39.5]} 21... Nge6 {[%clk 0:01:14.5]} 22. Qxe5+
{[%clk 0:01:37.6]} 22... Kg8 {[%clk 0:01:14.4]} 23. Rg6+ {[%clk 0:01:16]} 23...
Kf8 {[%clk 0:01:11.2]} 24. Qh8+ {[%clk 0:01:10.2]} 24... Ke7 {[%clk 0:01:09]}
25. Rxe6+ {[%clk 0:01:10.3]} 25... Kxe6 {[%clk 0:01:02.6]} 26. Qxa8 {[%clk
0:01:08.4]} 26... Qc7 {[%clk 0:00:50.2]} 27. Rh6+ {[%clk 0:00:53]} 27... Kd7
{[%clk 0:00:49.2]} 28. Nxb5 {[%clk 0:00:50.9]} 28... cxb5 {[%clk 0:00:48.3]} 29.
Bxb5+ {[%clk 0:00:50.7]} 29... Ke7 {[%clk 0:00:44.8]} 30. Qe8# {[%clk
0:00:50.3]} 1-0

[Event "*** SCC Grand Prix: Titled Tuesday Blitz"]
[Site "Chess.com"]
[Date "2020.09.08"]
[Round "1"]
[White "Gabix_94"]
[Black "ChelsieMonica"]
[Result "1-0"]
[WhiteElo "2837"]
[BlackElo "2419"]
[TimeControl "180+1"]
[EndTime "10:05:41 PDT"]
[Termination "Gabix_94 won by checkmate"]

1. c4 {[%clk 0:03:00.8]} 1... Nf6 {[%clk 0:02:59]} 2. Nc3 {[%clk 0:03:00.9]}
2... e6 {[%clk 0:02:59.2]} 3. e4 {[%clk 0:02:59.8]} 3... d5 {[%clk 0:02:58.9]}
4. e5 {[%clk 0:02:57.7]} 4... Nfd7 {[%clk 0:02:57.4]} 5. d4 {[%clk 0:02:48.1]}
5... dxc4 {[%clk 0:02:47.6]} 6. Bxc4 {[%clk 0:02:49]} 6... Nb6 {[%clk
0:02:47.7]} 7. Bd3 {[%clk 0:02:46.7]} 7... Be7 {[%clk 0:02:47.5]} 8. Nf3 {[%clk
0:02:45.9]} 8... h6 {[%clk 0:02:46.7]} 9. O-O {[%clk 0:02:44.9]} 9... O-O {[%clk
0:02:46]} 10. Bc2 {[%clk 0:02:41.7]} 10... c5 {[%clk 0:02:45.8]} 11. Qd3 {[%clk
0:02:38]} 11... g6 {[%clk 0:02:42.5]} 12. Bxh6 {[%clk 0:02:37]} 12... Nc6 {[%clk
0:02:40.9]} 13. Bxf8 {[%clk 0:02:35.8]} 13... Bxf8 {[%clk 0:02:41.8]} 14. dxc5
{[%clk 0:02:30.7]} 14... Qxd3 {[%clk 0:02:39.1]} 15. Bxd3 {[%clk 0:02:31.6]}
15... Bxc5 {[%clk 0:02:38.7]} 16. Ne4 {[%clk 0:02:32]} 16... Be7 {[%clk
0:02:36.4]} 17. Rac1 {[%clk 0:02:29.8]} 17... Bd7 {[%clk 0:02:35.6]} 18. a3
{[%clk 0:02:29.1]} 18... Nd5 {[%clk 0:02:34.6]} 19. Rfd1 {[%clk 0:02:27.6]}
19... Kg7 {[%clk 0:02:31.4]} 20. Bc4 {[%clk 0:02:23.1]} 20... Nb6 {[%clk
0:02:28.9]} 21. Ba2 {[%clk 0:02:22.3]} 21... Be8 {[%clk 0:02:27]} 22. Nd6 {[%clk
0:02:21.2]} 22... Rb8 {[%clk 0:02:21.3]} 23. Nxe8+ {[%clk 0:02:19.8]} 23... Rxe8
{[%clk 0:02:20.8]} 24. b4 {[%clk 0:02:19.3]} 24... a6 {[%clk 0:02:18.6]} 25. g3
{[%clk 0:02:16]} 25... Rd8 {[%clk 0:02:01.7]} 26. Rxd8 {[%clk 0:02:14.7]} 26...
Bxd8 {[%clk 0:02:00.8]} 27. Rd1 {[%clk 0:02:14]} 27... Be7 {[%clk 0:01:58.6]}
28. h4 {[%clk 0:02:11.3]} 28... a5 {[%clk 0:01:55.9]} 29. b5 {[%clk 0:02:10.4]}
29... Nb8 {[%clk 0:01:53.7]} 30. Rd3 {[%clk 0:02:05.8]} 30... N8d7 {[%clk
0:01:53.1]} 31. Rc3 {[%clk 0:02:00.7]} 31... Bc5 {[%clk 0:01:37.1]} 32. Kf1
{[%clk 0:01:55.9]} 32... Na4 {[%clk 0:01:34.5]} 33. Rd3 {[%clk 0:01:55.1]} 33...
Nab6 {[%clk 0:01:29.8]} 34. Ke2 {[%clk 0:01:54.4]} 34... Kf8 {[%clk 0:01:28.3]}
35. g4 {[%clk 0:01:52]} 35... Kg7 {[%clk 0:01:27.6]} 36. Rc3 {[%clk 0:01:44.1]}
36... Na4 {[%clk 0:01:26.5]} 37. Rc4 {[%clk 0:01:41.7]} 37... Nab6 {[%clk
0:01:26.1]} 38. Re4 {[%clk 0:01:41.8]} 38... Bxa3 {[%clk 0:01:23.7]} 39. h5
{[%clk 0:01:38.1]} 39... Bb4 {[%clk 0:01:21.6]} 40. Rf4 {[%clk 0:01:35]} 40...
Bc3 {[%clk 0:01:04.6]} 41. h6+ {[%clk 0:01:32.7]} 41... Kxh6 {[%clk 0:01:03.8]}
42. Rxf7 {[%clk 0:01:31.8]} 42... a4 {[%clk 0:01:03.2]} 43. g5+ {[%clk
0:01:25.7]} 43... Kh5 {[%clk 0:01:00.3]} 44. Bb1 {[%clk 0:01:26]} 44... Nxe5
{[%clk 0:00:55.1]} 45. Rh7+ {[%clk 0:01:23.2]} 45... Kg4 {[%clk 0:00:54]} 46.
Rh4# {[%clk 0:01:24.1]} 1-0

[Event "*** SCC Grand Prix: Titled Tuesday Blitz"]
[Site "Chess.com"]
[Date "2020.09.08"]
[Round "1"]
[White "Grineva_Marianna"]
[Black "shnitez"]
[Result "1-0"]
[WhiteElo "2227"]
[BlackElo "2530"]
[TimeControl "180+1"]
[EndTime "10:05:45 PDT"]
[Termination "Grineva_Marianna won by resignation"]

1. e4 {[%clk 0:03:00.6]} 1... c5 {[%clk 0:02:59.5]} 2. Nf3 {[%clk 0:02:58.3]}
2... e6 {[%clk 0:02:59]} 3. d4 {[%clk 0:02:58.4]} 3... cxd4 {[%clk 0:02:59.9]}
4. Nxd4 {[%clk 0:02:58.9]} 4... a6 {[%clk 0:03:00.3]} 5. Bd3 {[%clk 0:02:56.1]}
5... Bc5 {[%clk 0:02:59.3]} 6. Nb3 {[%clk 0:02:56.1]} 6... Be7 {[%clk
0:02:58.8]} 7. Qg4 {[%clk 0:02:56.1]} 7... g6 {[%clk 0:02:58.8]} 8. Qe2 {[%clk
0:02:54]} 8... d6 {[%clk 0:02:58.7]} 9. O-O {[%clk 0:02:54.4]} 9... Nd7 {[%clk
0:02:58.5]} 10. Na3 {[%clk 0:02:50]} 10... Qc7 {[%clk 0:02:51.2]} 11. Nc4 {[%clk
0:02:44.4]} 11... b6 {[%clk 0:02:35.8]} 12. a4 {[%clk 0:02:32.9]} 12... Bb7
{[%clk 0:02:31.6]} 13. a5 {[%clk 0:02:27.6]} 13... b5 {[%clk 0:02:31.5]} 14. Nb6
{[%clk 0:02:26.4]} 14... Nxb6 {[%clk 0:02:31.8]} 15. axb6 {[%clk 0:02:27.3]}
15... Qxb6 {[%clk 0:02:32.7]} 16. Na5 {[%clk 0:02:22.5]} 16... Rc8 {[%clk
0:01:22.7]} 17. Nxb7 {[%clk 0:02:02.9]} 17... Qxb7 {[%clk 0:01:22]} 18. c4
{[%clk 0:01:48.8]} 18... Rb8 {[%clk 0:00:44.9]} 19. cxb5 {[%clk 0:01:42.7]}
19... axb5 {[%clk 0:00:45.8]} 20. Be3 {[%clk 0:01:42.8]} 20... Nf6 {[%clk
0:00:32.8]} 21. Ra7 {[%clk 0:01:39.8]} 21... Qc8 {[%clk 0:00:32.2]} 22. Rc1
{[%clk 0:01:38.6]} 22... Qd8 {[%clk 0:00:32]} 23. Bxb5+ {[%clk 0:01:27.3]} 23...
Kf8 {[%clk 0:00:32]} 24. Rcc7 {[%clk 0:01:27]} 24... Ng8 {[%clk 0:00:27.8]} 25.
Rd7 {[%clk 0:01:06.3]} 25... Qc8 {[%clk 0:00:17.2]} 26. Rac7 {[%clk 0:01:06.2]}
1-0

[Event "*** SCC Grand Prix: Titled Tuesday Blitz"]
[Site "Chess.com"]
[Date "2020.09.08"]
[Round "1"]
[White "Matveev_Vladimir"]
[Black "Karina_Ivanova"]
[Result "1-0"]
[WhiteElo "2574"]
[BlackElo "2245"]
[TimeControl "180+1"]
[EndTime "10:05:47 PDT"]
[Termination "Matveev_Vladimir won by resignation"]

1. d4 {[%clk 0:03:00.9]} 1... Nf6 {[%clk 0:02:58]} 2. c4 {[%clk 0:03:00.9]} 2...
e6 {[%clk 0:02:56.2]} 3. Nf3 {[%clk 0:03:00.8]} 3... b6 {[%clk 0:02:54.7]} 4. a3
{[%clk 0:03:00.3]} 4... Bb7 {[%clk 0:02:50.5]} 5. Nc3 {[%clk 0:03:00]} 5... d5
{[%clk 0:02:46.2]} 6. Bg5 {[%clk 0:02:59.3]} 6... Be7 {[%clk 0:02:44.4]} 7. e3
{[%clk 0:02:54.7]} 7... O-O {[%clk 0:02:42.5]} 8. Rc1 {[%clk 0:02:53.3]} 8...
Nbd7 {[%clk 0:02:38.3]} 9. cxd5 {[%clk 0:02:51.6]} 9... exd5 {[%clk 0:02:02.4]}
10. Bd3 {[%clk 0:02:46.9]} 10... c5 {[%clk 0:02:00]} 11. O-O {[%clk 0:02:46.2]}
11... Rc8 {[%clk 0:01:55.3]} 12. dxc5 {[%clk 0:02:31.9]} 12... Nxc5 {[%clk
0:01:51.7]} 13. Bf5 {[%clk 0:02:28.9]} 13... Ne6 {[%clk 0:01:32.8]} 14. Bh4
{[%clk 0:02:27.8]} 14... Qd6 {[%clk 0:01:26]} 15. Bg3 {[%clk 0:02:20]} 15... Qd8
{[%clk 0:01:21.6]} 16. Nd4 {[%clk 0:02:18.3]} 16... Qd7 {[%clk 0:01:10.7]} 17.
Be5 {[%clk 0:01:53.8]} 17... Rfd8 {[%clk 0:01:04.8]} 18. Qf3 {[%clk 0:01:41.6]}
18... Nxd4 {[%clk 0:00:58.3]} 19. Bxd4 {[%clk 0:01:37.1]} 19... Qd6 {[%clk
0:00:52.1]} 20. Bxc8 {[%clk 0:01:15]} 20... Rxc8 {[%clk 0:00:48.4]} 21. Nb5
{[%clk 0:01:14]} 21... Qb8 {[%clk 0:00:47]} 22. Rxc8+ {[%clk 0:01:12]} 22...
Bxc8 {[%clk 0:00:45]} 23. Rc1 {[%clk 0:01:11.1]} 23... Be6 {[%clk 0:00:43.2]}
24. Qg3 {[%clk 0:01:08.6]} 24... Qxg3 {[%clk 0:00:25.3]} 25. hxg3 {[%clk
0:01:09.5]} 25... a6 {[%clk 0:00:26.2]} 26. Nc7 {[%clk 0:01:05.3]} 26... Bc8
{[%clk 0:00:24.1]} 27. Bxb6 {[%clk 0:01:03.8]} 1-0

[Event "*** SCC Grand Prix: Titled Tuesday Blitz"]
[Site "Chess.com"]
[Date "2020.09.08"]
[Round "1"]
[White "gui_borba"]
[Black "Pultis"]
[Result "0-1"]
[WhiteElo "2386"]
[BlackElo "2744"]
[TimeControl "180+1"]
[EndTime "10:05:48 PDT"]
[Termination "Pultis won by resignation"]

1. e4 {[%clk 0:03:00]} 1... c6 {[%clk 0:02:56.2]} 2. d4 {[%clk 0:02:59.3]} 2...
d5 {[%clk 0:02:55.8]} 3. e5 {[%clk 0:02:59.8]} 3... Bf5 {[%clk 0:02:54.5]} 4. h4
{[%clk 0:03:00.3]} 4... Qb6 {[%clk 0:02:46.7]} 5. g4 {[%clk 0:02:50.6]} 5... Bd7
{[%clk 0:02:43.8]} 6. h5 {[%clk 0:02:49.2]} 6... e6 {[%clk 0:02:39.1]} 7. c3
{[%clk 0:02:47.2]} 7... c5 {[%clk 0:02:38.5]} 8. f4 {[%clk 0:02:45.7]} 8... Nc6
{[%clk 0:02:25.7]} 9. Nf3 {[%clk 0:02:44.6]} 9... Rc8 {[%clk 0:02:25.6]} 10. a3
{[%clk 0:02:43]} 10... cxd4 {[%clk 0:02:21.3]} 11. cxd4 {[%clk 0:02:43.9]} 11...
Nxd4 {[%clk 0:01:42.9]} 12. Nxd4 {[%clk 0:02:37.8]} 12... Rxc1 {[%clk
0:01:42.4]} 13. Qxc1 {[%clk 0:02:38.7]} 13... Qxd4 {[%clk 0:01:42.3]} 14. Nc3
{[%clk 0:02:32.6]} 14... f6 {[%clk 0:01:25.8]} 15. Qd2 {[%clk 0:02:28.4]} 15...
Qxd2+ {[%clk 0:01:21.4]} 16. Kxd2 {[%clk 0:02:29.3]} 16... fxe5 {[%clk
0:01:22.2]} 17. fxe5 {[%clk 0:02:30.2]} 17... a6 {[%clk 0:01:14.8]} 18. b4
{[%clk 0:02:21.1]} 18... Be7 {[%clk 0:01:14.6]} 19. Bd3 {[%clk 0:02:07.5]} 19...
Nh6 {[%clk 0:01:12.8]} 20. Rhg1 {[%clk 0:02:04.6]} 20... Nf7 {[%clk 0:01:06]}
21. Raf1 {[%clk 0:02:00.4]} 21... Bg5+ {[%clk 0:01:04.1]} 22. Kd1 {[%clk
0:01:58.4]} 22... Nxe5 {[%clk 0:01:05]} 23. Be2 {[%clk 0:01:56.3]} 23... Ke7
{[%clk 0:01:03.9]} 24. Nb1 {[%clk 0:01:29.1]} 24... Rc8 {[%clk 0:01:00.1]} 25.
Ke1 {[%clk 0:01:29.6]} 25... Be3 {[%clk 0:00:48]} 26. Rg3 {[%clk 0:01:24.2]}
26... Rc1+ {[%clk 0:00:46.7]} 27. Bd1 {[%clk 0:01:24.6]} 27... d4 {[%clk
0:00:47.2]} 28. Nd2 {[%clk 0:01:15.3]} 28... Bb5 {[%clk 0:00:38.2]} 29. Rh1
{[%clk 0:01:10.8]} 29... Nd3+ {[%clk 0:00:36.6]} 30. Ke2 {[%clk 0:01:09.7]}
30... Nf2+ {[%clk 0:00:35.1]} 31. Kf3 {[%clk 0:01:07.5]} 31... Bc6+ {[%clk
0:00:33.1]} 32. Ne4 {[%clk 0:01:06.5]} 32... Bxe4+ {[%clk 0:00:32.2]} 33. Ke2
{[%clk 0:01:06.5]} 0-1

[Event "*** SCC Grand Prix: Titled Tuesday Blitz"]
[Site "Chess.com"]
[Date "2020.09.08"]
[Round "1"]
[White "GoltsevDmitry2000"]
[Black "mfwagnerpeixoto"]
[Result "1-0"]
[WhiteElo "2575"]
[BlackElo "2249"]
[TimeControl "180+1"]
[EndTime "10:05:52 PDT"]
[Termination "GoltsevDmitry2000 won by resignation"]

1. e4 {[%clk 0:02:51.9]} 1... c5 {[%clk 0:02:59.2]} 2. Nf3 {[%clk 0:02:48.3]}
2... d6 {[%clk 0:02:58.8]} 3. d4 {[%clk 0:02:48.6]} 3... cxd4 {[%clk 0:02:59.7]}
4. Nxd4 {[%clk 0:02:49.5]} 4... Nf6 {[%clk 0:03:00]} 5. Nc3 {[%clk 0:02:48.6]}
5... g6 {[%clk 0:03:00.5]} 6. Be2 {[%clk 0:02:48.9]} 6... Bg7 {[%clk 0:02:59.7]}
7. O-O {[%clk 0:02:49.4]} 7... O-O {[%clk 0:02:59.5]} 8. Be3 {[%clk 0:02:49.2]}
8... Nc6 {[%clk 0:02:56.4]} 9. f4 {[%clk 0:02:48.9]} 9... Nxd4 {[%clk 0:02:39]}
10. Bxd4 {[%clk 0:02:49.8]} 10... Be6 {[%clk 0:02:37.5]} 11. Bf3 {[%clk
0:02:46.1]} 11... Qc8 {[%clk 0:02:21.1]} 12. e5 {[%clk 0:02:45.3]} 12... dxe5
{[%clk 0:02:17.6]} 13. Bxe5 {[%clk 0:02:43.1]} 13... Rd8 {[%clk 0:02:14]} 14.
Qe2 {[%clk 0:02:41.6]} 14... a6 {[%clk 0:02:04]} 15. Qf2 {[%clk 0:02:40.8]}
15... Ng4 {[%clk 0:01:54.3]} 16. Bxg4 {[%clk 0:02:39.3]} 16... Bxg4 {[%clk
0:01:54]} 17. Bxg7 {[%clk 0:02:39.3]} 17... Kxg7 {[%clk 0:01:54.9]} 18. h3
{[%clk 0:02:39.9]} 18... Be6 {[%clk 0:01:51.9]} 19. Rad1 {[%clk 0:02:38.5]}
19... Qc4 {[%clk 0:01:49.5]} 20. Qe3 {[%clk 0:02:34.1]} 20... Kg8 {[%clk
0:01:38.7]} 21. g4 {[%clk 0:02:28.7]} 21... Rxd1 {[%clk 0:01:34.8]} 22. Rxd1
{[%clk 0:02:28.2]} 22... b5 {[%clk 0:01:32.8]} 23. Qd4 {[%clk 0:02:23.8]} 23...
Qxd4+ {[%clk 0:01:30.4]} 24. Rxd4 {[%clk 0:02:24.7]} 24... Rc8 {[%clk
0:01:29.7]} 25. a3 {[%clk 0:02:22.9]} 25... Rc4 {[%clk 0:01:27]} 26. Rxc4 {[%clk
0:02:21]} 26... Bxc4 {[%clk 0:01:27.9]} 27. Kf2 {[%clk 0:02:21.5]} 27... f6
{[%clk 0:01:26.1]} 28. Ke3 {[%clk 0:02:20.2]} 28... e5 {[%clk 0:01:23.7]} 29.
fxe5 {[%clk 0:02:17.8]} 29... fxe5 {[%clk 0:01:24.6]} 30. Ne4 {[%clk 0:02:18.5]}
30... Kg7 {[%clk 0:01:20.8]} 31. g5 {[%clk 0:02:08.2]} 31... Be6 {[%clk
0:01:17.5]} 32. h4 {[%clk 0:02:08.2]} 32... Bf5 {[%clk 0:01:16.6]} 33. Nc5
{[%clk 0:02:05.9]} 33... Bxc2 {[%clk 0:01:15.2]} 34. Nxa6 {[%clk 0:02:06.2]}
34... Kf7 {[%clk 0:00:58.4]} 35. Nc7 {[%clk 0:01:57.6]} 35... Ba4 {[%clk
0:00:55.5]} 36. Ke4 {[%clk 0:01:48.2]} 36... Bc2+ {[%clk 0:00:42]} 37. Kxe5
{[%clk 0:01:47.9]} 37... Bd3 {[%clk 0:00:42.3]} 38. b3 {[%clk 0:01:47.1]} 38...
Ke7 {[%clk 0:00:40.5]} 39. Nd5+ {[%clk 0:01:47.1]} 39... Kf7 {[%clk 0:00:36.4]}
40. a4 {[%clk 0:01:44.5]} 40... Bc2 {[%clk 0:00:32.1]} 41. axb5 {[%clk
0:01:33.4]} 41... Bxb3 {[%clk 0:00:32]} 42. b6 {[%clk 0:01:33.9]} 1-0

[Event "*** SCC Grand Prix: Titled Tuesday Blitz"]
[Site "Chess.com"]
[Date "2020.09.08"]
[Round "1"]
[White "mortngabriel"]
[Black "emiliocordova"]
[Result "0-1"]
[WhiteElo "2398"]
[BlackElo "2773"]
[TimeControl "180+1"]
[EndTime "10:05:56 PDT"]
[Termination "emiliocordova won by resignation"]

1. e4 {[%clk 0:02:58.2]} 1... c5 {[%clk 0:02:59.9]} 2. Nf3 {[%clk 0:02:58.1]}
2... Nc6 {[%clk 0:02:59.9]} 3. Bb5 {[%clk 0:02:58.6]} 3... e6 {[%clk 0:02:59.8]}
4. O-O {[%clk 0:02:56.6]} 4... Nge7 {[%clk 0:02:59.9]} 5. Re1 {[%clk 0:02:57.2]}
5... Ng6 {[%clk 0:02:59.7]} 6. c3 {[%clk 0:02:47.5]} 6... Be7 {[%clk 0:02:59.9]}
7. d4 {[%clk 0:02:47.1]} 7... a6 {[%clk 0:03:00.4]} 8. Bf1 {[%clk 0:02:43.9]}
8... cxd4 {[%clk 0:02:56.9]} 9. cxd4 {[%clk 0:02:42]} 9... d5 {[%clk 0:02:57.5]}
10. e5 {[%clk 0:02:42.6]} 10... O-O {[%clk 0:02:57.2]} 11. Nc3 {[%clk
0:02:41.4]} 11... Bd7 {[%clk 0:02:56.6]} 12. a3 {[%clk 0:02:36.5]} 12... Qc7
{[%clk 0:02:56.3]} 13. Be3 {[%clk 0:02:35.5]} 13... f6 {[%clk 0:02:56.3]} 14.
exf6 {[%clk 0:02:30.7]} 14... Rxf6 {[%clk 0:02:57.2]} 15. Bg5 {[%clk 0:02:19.2]}
15... Rxf3 {[%clk 0:02:56.7]} 16. Qxf3 {[%clk 0:02:01.4]} 16... Bxg5 {[%clk
0:02:56.3]} 17. Nxd5 {[%clk 0:02:02]} 17... Qd6 {[%clk 0:02:50.1]} 18. Nb6
{[%clk 0:02:00.7]} 18... Rf8 {[%clk 0:02:48.8]} 19. Qg4 {[%clk 0:01:50.4]} 19...
Bf6 {[%clk 0:02:05.7]} 20. Nxd7 {[%clk 0:01:48.2]} 20... Qxd7 {[%clk 0:02:06.6]}
21. Rad1 {[%clk 0:01:39.5]} 21... Nxd4 {[%clk 0:01:53.4]} 22. Bc4 {[%clk
0:01:38.6]} 22... Kh8 {[%clk 0:01:21]} 23. Rxe6 {[%clk 0:01:25.1]} 23... Rd8
{[%clk 0:00:27.7]} 24. Ree1 {[%clk 0:00:44.9]} 24... Qxg4 {[%clk 0:00:21.9]} 0-1